fUST/lending_fUST_20240115
["ID","MTS","AMOUNT","RATE_DAILY","PERIOD"]
[311652456,1705283438621,-182.483225,0.00024482,2]
[311652457,1705283438630,-155.47472097,0.00025395,2]
[311652458,1705283438639,-642.48543581,0.00025395,2]
[311652459,1705283438649,-887.82883238,0.00025845,2]
[311652460,1705283438659,-280.0,0.00025999,7]
[311652461,1705283438671,-274.36755231,0.0002729,2]
[311652462,1705283438681,-1997.45140212,0.00027291,2]
[311652463,1705283438690,-518.20609219,0.00027294,2]
[311652464,1705283438699,-263.92024338,0.00027396,2]
[311652465,1705283438709,-1414.12473582,0.00027396,2]
[311652466,1705283438718,-281.01555511,0.00027396,2]
[311652467,1705283438728,-503.31983438,0.00027397,2]
[311652468,1705283438737,-500.0,0.00027397,2]
[311652469,1705283438747,-500.0,0.00027397,2]
[311652470,1705283438757,-500.0,0.00027397,2]
[311652471,1705283438766,-538.58,0.00027397,2]
[311652472,1705283438776,-500.0,0.00027397,2]
[311652473,1705283438785,-500.0,0.00027397,2]
[311652474,1705283438795,-503.96191033,0.00027397,2]
[311652475,1705283438804,-502.60333216,0.00027397,2]
[311652476,1705283438814,-503.33303702,0.00027397,2]
[311652477,1705283438823,-502.27687519,0.00027397,2]
[311652478,1705283438833,-502.88413428,0.00027397,2]
[311652479,1705283438842,-500.98477589,0.00027397,2]
[311652480,1705283438852,-500.0,0.00027397,2]
[311652481,1705283438861,-502.05267447,0.00027397,2]
[311652482,1705283438870,-501.37674671,0.00027397,2]
[311652483,1705283438879,-508.5317716,0.00027397,2]
[311652484,1705283438889,-502.05087581,0.00027397,2]
[311652485,1705283438899,-500.0,0.00027397,2]
[311652486,1705283438910,-500.0,0.00027397,2]
[311652487,1705283438919,-500.0,0.00027397,2]
[311652488,1705283438929,-507.15125619,0.00027397,2]
[311652489,1705283438939,-1009.85496789,0.00027397,2]
[311652490,1705283438948,-501.07187204,0.00027397,2]
[311652491,1705283438958,-503.57965667,0.00027397,2]
[311652492,1705283438967,-510.72,0.00027397,2]
[311652493,1705283438977,-500.0,0.00027397,2]
[311652494,1705283438986,-503.51660922,0.00027397,2]
[311652495,1705283438996,-502.26533167,0.00027397,2]
[311652496,1705283439006,-500.0,0.00027397,2]
[311652497,1705283439015,-500.0,0.00027397,2]
[311652498,1705283439024,-502.20355913,0.00027397,2]
[311652499,1705283439034,-501.81487417,0.00027397,2]
[311652500,1705283439043,-501.48873245,0.00027397,2]
[311652501,1705283439052,-1205.71,0.00027397,2]
[311652502,1705283439061,-501.47845954,0.00027397,2]
[311652503,1705283439071,-502.6609662,0.00027397,2]
[311652504,1705283439081,-418.77670027,0.00027397,2]
[311652505,1705283439091,-500.0,0.00027397,2]
[311652506,1705283439101,-503.18903626,0.00027397,2]
[311652507,1705283439110,-500.0,0.00027397,2]
[311652508,1705283439119,-504.88438046,0.00027397,2]
[311652509,1705283439129,-500.0,0.00027397,2]
[311652510,1705283439139,-1955.72,0.00027397,2]
[311652511,1705283439148,-500.0,0.00027397,2]
[311652512,1705283439157,-518.15,0.00027397,2]
[311652513,1705283439168,-185.10745494,0.00027397,2]
[311652514,1705283439178,-1003.27224338,0.00027397,2]
[311652515,1705283439189,-500.0,0.00027397,2]
[311652516,1705283439199,-504.262651,0.00027397,2]
[311652517,1705283439209,-506.8248607,0.00027397,2]
[311652518,1705283439218,-595.09,0.00027397,2]
[311652519,1705283439228,-528.2834956,0.00027397,2]
[311652520,1705283439238,-503.32523847,0.00027397,2]
[311652521,1705283439247,-503.15716372,0.00027397,2]
[311652522,1705283439256,-810.15,0.00027397,2]
[311652523,1705283439266,-500.0,0.00027397,2]
[311652524,1705283439276,-504.94543592,0.00027397,2]
[311652525,1705283439286,-502.79504821,0.00027397,2]
[311652526,1705283439295,-502.08286688,0.00027397,2]
[311652527,1705283439305,-500.0,0.00027397,2]
[311652528,1705283439315,-500.0,0.00027397,2]
[311652529,1705283439324,-500.0,0.00027397,2]
[311652530,1705283439334,-500.0,0.00027397,2]
[311652531,1705283439343,-502.31704115,0.00027397,2]
[311652532,1705283439352,-500.0,0.00027397,2]
[311652533,1705283439362,-502.66986973,0.00027397,2]
[311652534,1705283439371,-525.58,0.00027397,2]
[311652535,1705283439380,-502.95586488,0.00027397,2]
[311652536,1705283439389,-500.0,0.00027397,2]
[311652537,1705283439398,-502.73984093,0.00027397,2]
[311652538,1705283439408,-3253.91,0.00027397,2]
[311652539,1705283439417,-531.17701106,0.00027397,2]
[311652540,1705283439426,-1225.79,0.00027397,2]
[311652541,1705283439436,-500.0,0.00027397,2]
[311652542,1705283439445,-504.22763654,0.00027397,2]
[311652543,1705283439454,-500.0,0.00027397,2]
[311652544,1705283439463,-503.20907047,0.00027397,2]
[311652545,1705283439473,-508.30072491,0.00027397,2]
[311652546,1705283439482,-500.0,0.00027397,2]
[311652547,1705283439491,-500.86771326,0.00027397,2]
[311652548,1705283439500,-508.25150903,0.00027397,2]
[311652549,1705283439509,-500.0,0.00027397,2]
[311652550,1705283439519,-501.4334362,0.00027397,2]
[311652551,1705283439529,-5164.5,0.00027397,2]
[311652552,1705283439538,-500.0,0.00027397,2]
[311652553,1705283439547,-500.0,0.00027397,2]
[311652554,1705283439556,-500.0,0.00027397,2]
[311652555,1705283439565,-502.44855039,0.00027397,2]
[311652556,1705283439575,-500.0,0.00027397,2]
[311652557,1705283439584,-500.0,0.00027397,2]
[311652558,1705283439593,-500.0,0.00027397,2]
[311652559,1705283439602,-757.98,0.00027397,2]
[311652560,1705283439612,-622.66,0.00027397,2]
[311652561,1705283439621,-155.0,0.00027397,2]
[311652562,1705283439630,-500.0,0.00027397,2]
[311652563,1705283439786,-502.5856594,0.00027397,2]
[311652564,1705283439801,-500.0,0.00027397,2]
[311652565,1705283439812,-502.3546232,0.00027397,2]
[311652566,1705283439821,-500.0,0.00027397,2]
[311652567,1705283439831,-1024.06,0.00027397,2]
[311652568,1705283439841,-500.0,0.00027397,2]
[311652569,1705283439850,-500.0,0.00027397,2]
[311652570,1705283439860,-473.08194465,0.00027397,2]
[311652571,1705283439870,-502.50525301,0.00027397,2]
[311652572,1705283439879,-581.85477034,0.00027397,2]
[311652573,1705283439888,-504.16378013,0.00027397,2]
[311652574,1705283439898,-503.04729335,0.00027397,2]
[311652575,1705283439907,-500.0,0.00027397,2]
[311652576,1705283439917,-884.36,0.00027397,2]
[311652577,1705283439927,-618.92,0.00027397,2]
[311652578,1705283439937,-505.34112155,0.00027397,2]
[311652579,1705283439946,-219.42422002,0.00027397,2]
[311652580,1705283439955,-446.21201326,0.00027397,2]
[311652581,1705283439965,-501.70956628,0.00027397,2]
[311652582,1705283439974,-500.0,0.00027397,2]
[311652583,1705283439984,-174.27424629,0.00027397,2]
[311652584,1705283439993,-1208.32,0.00027397,2]
[311652585,1705283440002,-500.0,0.00027397,2]
[311652586,1705283440011,-500.0,0.00027397,2]
[311652587,1705283440021,-502.11897291,0.00027397,2]
[311652588,1705283440030,-1109.21,0.00027397,2]
[311652589,1705283440040,-500.0,0.00027397,2]
[311652590,1705283440049,-507.36771227,0.00027397,2]
[311652591,1705283440059,-1016.79,0.00027397,2]
[311652592,1705283440069,-500.0,0.00027397,2]
[311652593,1705283440081,-1169.24,0.00027397,2]
[311652594,1705283440091,-568.38,0.00027397,2]
[311652595,1705283440101,-500.0,0.00027397,2]
[311652596,1705283440110,-500.0,0.00027397,2]
[311652597,1705283440119,-500.0,0.00027397,2]
[311652598,1705283440128,-504.7664544,0.00027397,2]
[311652599,1705283440137,-507.0775464,0.00027397,2]
[311652600,1705283440146,-251.0898344,0.00027397,2]
[311652601,1705283440156,-500.0,0.00027397,2]
[311652602,1705283440165,-503.19775777,0.00027397,2]
[311652603,1705283440177,-500.0,0.00027397,2]
[311652604,1705283440187,-500.0,0.00027397,2]
[311652605,1705283440198,-500.0,0.00027397,2]
[311652606,1705283440207,-503.75555168,0.00027397,2]
[311652607,1705283440216,-503.5354597,0.00027397,2]
[311652608,1705283440225,-2116.12,0.00027397,2]
[311652609,1705283440234,-501.18433617,0.00027397,2]
[311652610,1705283440244,-500.0,0.00027397,2]
[311652611,1705283440253,-500.0,0.00027397,2]
[311652612,1705283440264,-500.0,0.00027397,2]
[311652613,1705283440274,-4937.13,0.00027397,2]
[311652614,1705283440283,-2045.09,0.00027397,2]
[311652615,1705283440293,-948.49,0.00027397,2]
[311652616,1705283440302,-506.99532095,0.00027397,2]
[311652617,1705283440311,-502.16920952,0.00027397,2]
[311652618,1705283440320,-500.75745477,0.00027397,2]
[311652619,1705283440329,-503.65809549,0.00027397,2]
[311652620,1705283440339,-500.0,0.00027397,2]
[311652621,1705283440348,-504.01015231,0.00027397,2]
[311652622,1705283440358,-12056.44,0.00027397,2]
[311652623,1705283440367,-500.0,0.00027397,2]
[311652624,1705283440376,-500.0,0.00027397,2]
[311652625,1705283440385,-5912.85,0.00027397,2]
[311652626,1705283440394,-501.00095566,0.00027397,2]
[311652628,1705283440403,-500.0,0.00027397,2]
[311652630,1705283440413,-779.71,0.00027397,2]
[311652632,1705283440422,-500.0,0.00027397,2]
[311652634,1705283440432,-3475.43,0.00027397,2]
[311652636,1705283440442,-619.60676546,0.00027397,2]
[311652637,1705283440451,-500.0,0.00027397,2]
[311652638,1705283440460,-500.0,0.00027397,2]
[311652639,1705283440470,-500.0,0.00027397,2]
[311652641,1705283440479,-497.36916731,0.00027397,2]
[311652642,1705283440488,-500.75290415,0.00027397,2]
[311652643,1705283440498,-530.56028789,0.00027397,2]
[311652644,1705283440507,-505.12669537,0.00027397,2]
[311652645,1705283440517,-500.78879984,0.00027397,2]
[311652647,1705283440526,-500.0,0.00027397,2]
[311652648,1705283440536,-46.12133699,0.00027397,2]
[311652651,1705283440552,-453.87866301,0.00027397,2]
[311652653,1705283440562,-500.0,0.00027397,2]
[311652655,1705283440571,-783.3,0.00027397,2]
[311652656,1705283440580,-500.0,0.00027397,2]
[311652657,1705283440590,-500.0,0.00027397,2]
[311652658,1705283440598,-508.34842881,0.00027397,2]
[311652659,1705283440608,-502.10441126,0.00027397,2]
[311652660,1705283440617,-500.0,0.00027397,2]
[311652661,1705283440627,-628.23011085,0.00027397,2]
[311652663,1705283440636,-500.0,0.00027397,2]
[311652665,1705283440646,-500.0,0.00027397,2]
[311652667,1705283440656,-503.35354243,0.00027397,2]
[311652669,1705283440666,-500.0,0.00027397,2]
[311652671,1705283440677,-500.0,0.00027397,2]
[311652672,1705283440686,-500.29488324,0.00027397,2]
[311652674,1705283440696,-500.0,0.00027397,2]
[311652676,1705283440706,-500.0,0.00027397,2]
[311652678,1705283440715,-500.0,0.00027397,2]
[311652679,1705283440724,-19479.48,0.00027397,2]
[311652680,1705283440734,-629.50201696,0.00027397,2]
[311652681,1705283440743,-634.8,0.00027397,2]
[311652682,1705283440754,-500.0,0.00027397,2]
[311652683,1705283440763,-500.3640637,0.00027397,2]
[311652684,1705283440772,-502.84505842,0.00027397,2]
[311652685,1705283440781,-500.0,0.00027397,2]
[311652686,1705283440791,-500.0,0.00027397,2]
[311652687,1705283440800,-502.26499882,0.00027397,2]
[311652688,1705283440810,-1533.71,0.00027397,2]
[311652689,1705283440819,-500.0,0.00027397,2]
[311652690,1705283440829,-685.11,0.00027397,2]
[311652691,1705283440839,-500.0,0.00027397,2]
[311652692,1705283440849,-2218.57,0.00027397,2]
[311652693,1705283440860,-503.73527236,0.00027397,2]
[311652694,1705283440869,-500.0,0.00027397,2]
[311652695,1705283440879,-500.0,0.00027397,2]
[311652696,1705283440888,-500.0,0.00027397,2]
[311652697,1705283440898,-502.01063694,0.00027397,5]
[311652698,1705283440907,-500.0,0.00027397,2]
[311652699,1705283440916,-605.93,0.00027397,2]
[311652700,1705283440926,-256.89112284,0.00027397,2]
[311652701,1705283440935,-500.0,0.00027397,2]
[311652702,1705283440945,-500.0,0.00027397,2]
[311652703,1705283440955,-501.06750293,0.00027397,2]
[311652704,1705283440964,-223.61854787,0.00027397,2]
[311652705,1705283440974,-500.56900131,0.00027397,2]
[311652706,1705283440984,-522.44209673,0.00027397,2]
[311652707,1705283440994,-500.0,0.00027397,2]
[311652708,1705283441004,-504.58019744,0.00027397,2]
[311652709,1705283441013,-500.0,0.00027397,2]
[311652710,1705283441022,-532.1773052,0.00027397,2]
[311652711,1705283441032,-500.0,0.00027397,2]
[311652712,1705283441042,-500.0,0.00027397,2]
[311652713,1705283441051,-698.3,0.00027397,2]
[311652714,1705283441061,-500.0,0.00027397,2]
[311652715,1705283441070,-510.93448844,0.00027397,2]
[311652716,1705283441080,-500.0,0.00027534,2]
[311652717,1705283441089,-157.77559155,0.0002767,2]
[311652718,1705283441098,-500.0,0.0002767,2]
[311652719,1705283441108,-500.0,0.0002767,2]
[311652720,1705283441117,-500.0,0.0002767,2]
[311652721,1705283441126,-541.43834956,0.0002767,2]
[311652722,1705283441135,-501.59590139,0.0002767,2]
[311652723,1705283441145,-607.52766287,0.0002767,2]
[311652724,1705283441154,-503.66933198,0.0002767,2]
[311652725,1705283441163,-500.0,0.0002767,2]
[311652726,1705283441173,-500.0,0.0002767,2]
[311652727,1705283441182,-541.43834956,0.0002767,2]
[311652728,1705283441192,-500.0,0.0002767,2]
[311652729,1705283441201,-541.43834956,0.0002767,2]
[311652730,1705283441211,-500.0,0.0002767,2]
[311652731,1705283441220,-500.0,0.0002767,2]
[311652732,1705283441230,-541.43834956,0.0002767,2]
[311652733,1705283441240,-234.3154889,0.0002767,2]
[311652734,1705283441249,-500.0,0.0002767,2]
[311652735,1705283441258,-541.43834956,0.0002767,2]
[311652736,1705283441267,-500.0,0.0002767,2]
[311652737,1705283441277,-249.15448913,0.0002767,2]
[311652738,1705283441286,-541.43834956,0.0002767,2]
[311652739,1705283441295,-500.0,0.0002767,2]
[311652740,1705283441304,-541.43834956,0.0002767,2]
[311652741,1705283441313,-366.7240688,0.0002767,2]
[311652742,1705283441323,-500.0,0.0002767,2]
[311652743,1705283441334,-541.43834956,0.0002767,2]
[311652744,1705283441343,-541.43834956,0.0002767,2]
[311652745,1705283441352,-225.10571097,0.0002767,2]
[311652746,1705283441362,-541.43834956,0.0002767,2]
[311652747,1705283441372,-541.43834956,0.0002767,2]
[311652748,1705283441381,-541.43834956,0.0002767,2]
[311652749,1705283441391,-541.43834956,0.0002767,2]
[311652750,1705283441400,-500.0,0.0002767,2]
[311652751,1705283441409,-500.0,0.0002767,2]
[311652752,1705283441418,-541.43834956,0.0002767,2]
[311652753,1705283441428,-541.43834956,0.0002767,2]
[311652754,1705283441437,-541.43834956,0.0002767,2]
[311652755,1705283441447,-541.43834956,0.0002767,2]
[311652756,1705283441456,-541.43834956,0.0002767,2]
[311652757,1705283441465,-541.43834956,0.0002767,2]
[311652758,1705283441475,-541.43834956,0.0002767,2]
[311652759,1705283441484,-541.43834956,0.0002767,2]
[311652760,1705283441493,-541.43834956,0.0002767,2]
[311652761,1705283441502,-541.43834956,0.0002767,2]
[311652762,1705283441511,-541.43834956,0.0002767,2]
[311652763,1705283441520,-541.43834956,0.0002767,2]
[311652764,1705283441530,-501.9226916,0.00027671,2]
[311652765,1705283441539,-500.0,0.00027671,2]
[311652766,1705283441548,-500.0,0.00027671,2]
[311652767,1705283441557,-538.58,0.00027671,2]
[311652768,1705283441566,-509.92698359,0.00027671,2]
[311652769,1705283441576,-318.01175863,0.00027671,2]
[311652770,1705283441586,-500.0,0.00027671,2]
[311652771,1705283441595,-500.0,0.00027671,2]
[311652772,1705283441604,-500.0,0.00027671,2]
[311652773,1705283441614,-227.39276305,0.00027671,2]
[311652774,1705283441623,-510.72,0.00027671,2]
[311652775,1705283441633,-505.15095378,0.00027671,2]
[311652776,1705283441642,-500.0,0.00027671,2]
[311652777,1705283441652,-500.0,0.00027671,2]
[311652778,1705283441662,-1205.71,0.00027671,2]
[311652779,1705283441672,-500.0,0.00027671,2]
[311652780,1705283441682,-500.0,0.00027671,2]
[311652781,1705283441693,-1955.72,0.00027671,2]
[311652782,1705283441702,-506.63455425,0.00027671,2]
[311652783,1705283441711,-518.15,0.00027671,2]
[311652784,1705283441721,-500.0,0.00027671,2]
[311652785,1705283441730,-595.09,0.00027671,2]
[311652786,1705283441739,-810.15,0.00027671,2]
[311652787,1705283441748,-500.0,0.00027671,2]
[311652788,1705283441758,-500.0,0.00027671,2]
[311652789,1705283441767,-500.0,0.00027671,2]
[311652790,1705283441776,-502.29616248,0.00027671,2]
[311652791,1705283441787,-502.23369092,0.00027671,2]
[311652792,1705283441796,-500.0,0.00027671,2]
[311652793,1705283441806,-525.58,0.00027671,2]
[311652794,1705283441815,-500.0,0.00027671,2]
[311652795,1705283441825,-3253.91,0.00027671,2]
[311652796,1705283441834,-1225.79,0.00027671,2]
[311652797,1705283441843,-501.59632751,0.00027671,2]
[311652798,1705283441852,-501.08034467,0.00027671,2]
[311652799,1705283441861,-500.0,0.00027671,2]
[311652800,1705283441871,-500.0,0.00027671,2]
[311652801,1705283441880,-5164.5,0.00027671,2]
[311652802,1705283441890,-500.0,0.00027671,2]
[311652803,1705283441899,-441.66624271,0.00027671,2]
[311652804,1705283441909,-237.26337944,0.00027671,2]
[311652805,1705283441919,-500.0,0.00027671,2]
[311652806,1705283441929,-503.63634839,0.00027671,2]
[311652807,1705283441941,-500.0,0.00027671,2]
[311652808,1705283441950,-757.98,0.00027671,2]
[311652809,1705283441959,-622.66,0.00027671,2]
[311652810,1705283441969,-500.0,0.00027671,2]
[311652811,1705283441978,-500.0,0.00027671,2]
[311652812,1705283441988,-504.42683883,0.00027671,2]
[311652813,1705283441997,-1024.06,0.00027671,2]
[311652814,1705283442006,-502.80293776,0.00027671,2]
[311652815,1705283442015,-500.0,0.00027671,2]
[311652816,1705283442110,-884.36,0.00027671,2]
[311652817,1705283442121,-618.92,0.00027671,2]
[311652818,1705283442130,-500.0,0.00027671,2]
[311652819,1705283442139,-1208.32,0.00027671,2]
[311652820,1705283442148,-500.0,0.00027671,2]
[311652821,1705283442157,-500.0,0.00027671,2]
[311652822,1705283442166,-1109.21,0.00027671,2]
[311652823,1705283442175,-506.080899,0.00027671,2]
[311652824,1705283442185,-1016.79,0.00027671,2]
[311652825,1705283442194,-510.11734616,0.00027671,2]
[311652826,1705283442203,-1169.24,0.00027671,2]
[311652827,1705283442212,-568.38,0.00027671,2]
[311652828,1705283442222,-504.8929549,0.00027671,2]
[311652829,1705283442231,-500.0,0.00027671,2]
[311652830,1705283442241,-504.8361977,0.00027671,2]
[311652831,1705283442250,-500.0,0.00027671,2]
[311652832,1705283442259,-507.23683336,0.00027671,2]
[311652833,1705283442268,-501.02203738,0.00027671,2]
[311652834,1705283442277,-500.0,0.00027671,2]
[311652835,1705283442287,-2116.12,0.00027671,2]
[311652836,1705283442296,-504.49598516,0.00027671,2]
[311652837,1705283442305,-506.40423692,0.00027671,2]
[311652838,1705283442315,-502.8108887,0.00027671,2]
[311652839,1705283442324,-4937.13,0.00027671,2]
[311652840,1705283442334,-2045.09,0.00027671,2]
[311652841,1705283442343,-948.49,0.00027671,2]
[311652842,1705283442352,-500.0,0.00027671,2]
[311652843,1705283442361,-12056.44,0.00027671,2]
[311652844,1705283442371,-5912.85,0.00027671,2]
[311652845,1705283442380,-509.5498702,0.00027671,2]
[311652846,1705283442389,-504.4795375,0.00027671,2]
[311652847,1705283442399,-500.0,0.00027671,2]
[311652848,1705283442409,-779.71,0.00027671,2]
[311652849,1705283442418,-500.0,0.00027671,2]
[311652850,1705283442427,-3475.43,0.00027671,2]
[311652851,1705283442437,-502.903076,0.00027671,2]
[311652852,1705283442447,-598.23322415,0.00027671,2]
[311652853,1705283442456,-500.0,0.00027671,2]
[311652854,1705283442465,-783.3,0.00027671,2]
[311652855,1705283442474,-507.19143046,0.00027671,2]
[311652856,1705283442484,-500.0,0.00027671,2]
[311652857,1705283442493,-500.0,0.00027671,2]
[311652858,1705283442502,-500.0,0.00027671,2]
[311652859,1705283442511,-500.0,0.00027671,2]
[311652860,1705283442520,-501.31127598,0.00027671,2]
[311652861,1705283442529,-505.37573343,0.00027671,2]
[311652862,1705283442539,-505.17356154,0.00027671,2]
[311652863,1705283442548,-312.25901407,0.00027671,2]
[311652864,1705283442557,-500.0,0.00027671,2]
[311652865,1705283442566,-19479.48,0.00027671,2]
[311652866,1705283442575,-502.4278378,0.00027671,2]
[311652867,1705283442585,-634.8,0.00027671,2]
[311652868,1705283442595,-500.0,0.00027671,2]
[311652869,1705283442604,-500.0,0.00027671,2]
[311652870,1705283442613,-1533.71,0.00027671,2]
[311652871,1705283442623,-501.61517062,0.00027671,2]
[311652872,1705283442633,-685.11,0.00027671,2]
[311652873,1705283442643,-500.0,0.00027671,2]
[311652875,1705283442653,-2218.57,0.00027671,2]
[311652876,1705283442663,-502.48491757,0.00027671,2]
[311652877,1705283442674,-210.27660669,0.00027671,2]
[311652878,1705283442685,-500.0,0.00027671,2]
[311652879,1705283442695,-500.0,0.00027671,2]
[311652880,1705283442703,-605.93,0.00027671,2]
[311652881,1705283442713,-501.41975854,0.00027671,2]
[311652882,1705283442722,-515.34296366,0.00027671,2]
[311652883,1705283442732,-698.3,0.00027671,2]
[311652884,1705283442741,-506.06741952,0.00027671,2]
[311652885,1705283442753,-309.4108809,0.00027671,2]
[311652886,1705283442765,-203.1062333,0.00027671,2]
[311652887,1705283442775,-153.2206058,0.00027671,2]
[311652889,1705283442786,-198.8089634,0.00027671,2]
[311652891,1705283442795,-306.2959332,0.00027671,2]
[311652893,1705283442804,-198.8089634,0.00027671,2]
[311652895,1705283442813,-306.0,0.00027671,2]
[311652896,1705283442823,-688.3625771,0.000277,2]
[311652899,1705283442833,-500.0,0.00027945,2]
[311652900,1705283442843,-349.43807217,0.00027945,2]
[311652902,1705283442852,-538.58,0.00027945,2]
[311652904,1705283442861,-500.0,0.00027945,2]
[311652906,1705283442870,-545.74874845,0.00027945,2]
[311652909,1705283442880,-500.0,0.00027945,2]
[311652911,1705283442889,-510.72,0.00027945,2]
[311652912,1705283442899,-221.94011817,0.00027945,2]
[311652914,1705283442908,-500.0,0.00027945,2]
[311652916,1705283442918,-1205.71,0.00027945,2]
[311652918,1705283442927,-500.0,0.00027945,2]
[311652920,1705283442938,-500.0,0.00027945,2]
[311652922,1705283442947,-1955.72,0.00027945,2]
[311652924,1705283442956,-518.15,0.00027945,2]
[311652925,1705283442965,-324.20723267,0.00027945,2]
[311652927,1705283442976,-595.09,0.00027945,2]
[311652928,1705283442985,-810.15,0.00027945,2]
[311652929,1705283442994,-500.0,0.00027945,2]
[311652931,1705283443003,-509.6842685,0.00027945,2]
[311652933,1705283443013,-500.0,0.00027945,2]
[311652935,1705283443022,-500.0,0.00027945,2]
[311652937,1705283443031,-525.58,0.00027945,2]
[311652939,1705283443041,-500.0,0.00027945,2]
[311652941,1705283443050,-3253.91,0.00027945,2]
[311652943,1705283443060,-1225.79,0.00027945,2]
[311652945,1705283443069,-500.0,0.00027945,2]
[311652947,1705283443078,-500.0,0.00027945,2]
[311652949,1705283443087,-5164.5,0.00027945,2]
[311652951,1705283443096,-500.0,0.00027945,2]
[311652953,1705283443105,-500.0,0.00027945,2]
[311652955,1705283443114,-500.0,0.00027945,2]
[311652957,1705283443123,-757.98,0.00027945,2]
[311652959,1705283443133,-622.66,0.00027945,2]
[311652960,1705283443142,-500.0,0.00027945,2]
[311652963,1705283443152,-1024.06,0.00027945,2]
[311652964,1705283443161,-500.0,0.00027945,2]
[311652966,1705283443171,-884.36,0.00027945,2]
[311652968,1705283443180,-618.92,0.00027945,2]
[311652970,1705283443192,-500.0,0.00027945,2]
[311652972,1705283443201,-1208.32,0.00027945,2]
[311652974,1705283443210,-500.0,0.00027945,2]
[311652976,1705283443219,-500.0,0.00027945,2]
[311652978,1705283443228,-1109.21,0.00027945,2]
[311652980,1705283443238,-1016.79,0.00027945,2]
[311652982,1705283443250,-568.38,0.00027945,2]
[311652984,1705283443261,-503.55172519,0.00027945,2]
[311652986,1705283443296,-1169.24,0.00027945,2]
[311652989,1705283443306,-500.0,0.00027945,2]
[311652990,1705283443316,-500.0,0.00027945,2]
[311652992,1705283443325,-2116.12,0.00027945,2]
[311652995,1705283443334,-4937.13,0.00027945,2]
[311652997,1705283443344,-2045.09,0.00027945,2]
[311652998,1705283443353,-948.49,0.00027945,2]
[311653000,1705283443362,-500.0,0.00027945,2]
[311653003,1705283443371,-12056.44,0.00027945,2]
[311653006,1705283443380,-5912.85,0.00027945,2]
[311653009,1705283443389,-500.0,0.00027945,2]
[311653012,1705283443399,-779.71,0.00027945,2]
[311653015,1705283443408,-500.0,0.00027945,2]
[311653018,1705283443417,-3475.43,0.00027945,2]
[311653020,1705283443426,-500.0,0.00027945,2]
[311653022,1705283443436,-783.3,0.00027945,2]
[311653024,1705283443446,-500.0,0.00027945,2]
[311653026,1705283443455,-500.0,0.00027945,2]
[311653029,1705283443464,-500.0,0.00027945,2]
[311653030,1705283443474,-500.0,0.00027945,2]
[311653033,1705283443483,-500.0,0.00027945,2]
[311653034,1705283443492,-19479.48,0.00027945,2]
[311653036,1705283443502,-634.8,0.00027945,2]
[311653038,1705283443511,-500.0,0.00027945,2]
[311653040,1705283443520,-1533.71,0.00027945,2]
[311653043,1705283443530,-685.11,0.00027945,2]
[311653045,1705283443539,-500.0,0.00027945,2]
[311653047,1705283443549,-2218.57,0.00027945,2]
[311653049,1705283443558,-473.87011521,0.00027945,2]
[311653051,1705283443567,-507.33605451,0.00027945,2]
[311653052,1705283443576,-605.93,0.00027945,2]
[311653053,1705283443585,-698.3,0.00027945,2]
[311653054,1705283443595,-200.0,0.00028,4]
[311653055,1705283443604,-1972.56828739,0.00028,2]
[311653056,1705283443614,-155.19121382,0.00028217,2]
[311653057,1705283443623,-273.13111529,0.00028217,2]
[311653058,1705283443632,-155.56443103,0.00028217,2]